[Event "Late-Titled-Tuesday-Blitz-December-26-2023"]
[Site "Chess.com"]
[Date "2023.12.26"]
[Round "8"]
[White "Bryanl106"]
[Black "Abduzhaparov"]
[Result "1-0"]
[WhiteElo "2558"]
[BlackElo "2389"]
[TimeControl "180+1"]
[EndTime "15:27:07 PST"]
[Termination "Bryanl106 won on time"]

1. e4 {[%clk 0:03:00.9]} 1... d6 {[%clk 0:03:00.9]} 2. d4 {[%clk 0:02:56.5]}
2... Nf6 {[%clk 0:03:01.8]} 3. Nc3 {[%clk 0:02:56.6]} 3... e5 {[%clk 0:03:02.7]}
4. Nf3 {[%clk 0:02:56.2]} 4... exd4 {[%clk 0:03:02.2]} 5. Nxd4 {[%clk
0:02:56.1]} 5... Be7 {[%clk 0:03:03.1]} 6. Be2 {[%clk 0:02:53.1]} 6... O-O
{[%clk 0:03:04]} 7. Be3 {[%clk 0:02:53.1]} 7... Re8 {[%clk 0:03:04.1]} 8. f3
{[%clk 0:02:52.8]} 8... d5 {[%clk 0:03:02.4]} 9. e5 {[%clk 0:02:51.3]} 9... Nfd7
{[%clk 0:03:02.3]} 10. e6 {[%clk 0:02:51.7]} 10... Nf6 {[%clk 0:02:58.4]} 11.
exf7+ {[%clk 0:02:51.7]} 11... Kxf7 {[%clk 0:02:59.3]} 12. Bf2 {[%clk
0:02:42.3]} 12... c5 {[%clk 0:02:55.9]} 13. Nb3 {[%clk 0:02:42.5]} 13... d4
{[%clk 0:02:51.4]} 14. Ne4 {[%clk 0:02:42.6]} 14... Nxe4 {[%clk 0:02:38.9]} 15.
fxe4 {[%clk 0:02:43.5]} 15... Kg8 {[%clk 0:02:38.9]} 16. Bc4+ {[%clk 0:02:38.3]}
16... Kh8 {[%clk 0:02:38.5]} 17. O-O {[%clk 0:02:38]} 17... Bf8 {[%clk
0:02:37.4]} 18. Qf3 {[%clk 0:02:26.5]} 18... Nc6 {[%clk 0:02:22.1]} 19. Bg3
{[%clk 0:02:25.2]} 19... Be6 {[%clk 0:02:16.7]} 20. Bxe6 {[%clk 0:02:15.1]}
20... Rxe6 {[%clk 0:02:17.6]} 21. e5 {[%clk 0:02:10.9]} 21... Qe7 {[%clk
0:01:55.2]} 22. Rae1 {[%clk 0:02:08.2]} 22... Re8 {[%clk 0:01:54.9]} 23. Nd2
{[%clk 0:02:06.8]} 23... Kg8 {[%clk 0:01:46.7]} 24. Nc4 {[%clk 0:02:06.1]} 24...
Qd7 {[%clk 0:01:35.1]} 25. a4 {[%clk 0:02:00.6]} 25... h6 {[%clk 0:01:22.5]} 26.
c3 {[%clk 0:01:58.6]} 26... a6 {[%clk 0:01:16.7]} 27. a5 {[%clk 0:01:33.3]}
27... Qc7 {[%clk 0:01:15.9]} 28. Nd6 {[%clk 0:01:25.4]} 28... Bxd6 {[%clk
0:01:01.3]} 29. exd6 {[%clk 0:01:26.3]} 29... Qd7 {[%clk 0:01:01.6]} 30. Rxe6
{[%clk 0:01:23.6]} 30... Rxe6 {[%clk 0:00:56.9]} 31. Qf8+ {[%clk 0:01:23.5]}
31... Kh7 {[%clk 0:00:57.1]} 32. Qf5+ {[%clk 0:01:24.1]} 32... Kg8 {[%clk
0:00:53.6]} 33. Qxc5 {[%clk 0:01:22]} 33... dxc3 {[%clk 0:00:50.8]} 34. Qxc3
{[%clk 0:01:22.9]} 34... Kh7 {[%clk 0:00:40.3]} 35. Qc2+ {[%clk 0:01:21.5]}
35... Kg8 {[%clk 0:00:39.9]} 36. Qf5 {[%clk 0:01:21.7]} 36... Nd4 {[%clk
0:00:34.1]} 37. Qf8+ {[%clk 0:01:18.2]} 37... Kh7 {[%clk 0:00:34.6]} 38. Rf7
{[%clk 0:01:15.3]} 38... Ne2+ {[%clk 0:00:27.2]} 39. Kf2 {[%clk 0:01:02.6]}
39... Rf6+ {[%clk 0:00:19.6]} 40. Rxf6 {[%clk 0:01:01.6]} 40... Nxg3 {[%clk
0:00:19.4]} 41. hxg3 {[%clk 0:00:54.9]} 41... Qg4 {[%clk 0:00:09.1]} 42. Rxh6+
{[%clk 0:00:53.8]} 42... gxh6 {[%clk 0:00:05.2]} 43. Qf7+ {[%clk 0:00:53.9]}
43... Kh8 {[%clk 0:00:05.3]} 44. Qf6+ {[%clk 0:00:53.9]} 44... Kh7 {[%clk
0:00:05.1]} 45. Qe7+ {[%clk 0:00:54.1]} 45... Kh8 {[%clk 0:00:05.2]} 46. Qe5+
{[%clk 0:00:53.1]} 46... Kh7 {[%clk 0:00:04.8]} 47. Qf4 {[%clk 0:00:50.1]} 47...
Qe6 {[%clk 0:00:03.7]} 48. Qf8 {[%clk 0:00:47.2]} 48... Qg4 {[%clk 0:00:01.2]}
49. Qe7+ {[%clk 0:00:47.1]} 1-0

[Event "Late-Titled-Tuesday-Blitz-December-26-2023"]
[Site "Chess.com"]
[Date "2023.12.26"]
[Round "8"]
[White "Gyulamiryan-koryun"]
[Black "miraitrunks"]
[Result "0-1"]
[WhiteElo "2006"]
[BlackElo "2074"]
[TimeControl "180+1"]
[EndTime "15:27:12 PST"]
[Termination "miraitrunks won on time"]

1. e4 {[%clk 0:03:00.9]} 1... e6 {[%clk 0:02:17.9]} 2. d4 {[%clk 0:02:59.8]}
2... d5 {[%clk 0:02:18.8]} 3. Nd2 {[%clk 0:02:58.6]} 3... dxe4 {[%clk
0:02:18.7]} 4. Nxe4 {[%clk 0:02:57.8]} 4... Bd7 {[%clk 0:02:19.6]} 5. Nf3 {[%clk
0:02:55.6]} 5... Bc6 {[%clk 0:02:19.8]} 6. Bd3 {[%clk 0:02:53.6]} 6... Nf6
{[%clk 0:02:19.2]} 7. Nxf6+ {[%clk 0:02:51.5]} 7... Qxf6 {[%clk 0:02:20.1]} 8.
Be2 {[%clk 0:02:48.2]} 8... h6 {[%clk 0:02:18]} 9. O-O {[%clk 0:02:46.2]} 9...
Bd6 {[%clk 0:02:16.8]} 10. c3 {[%clk 0:02:45.1]} 10... Nd7 {[%clk 0:02:15.6]}
11. h3 {[%clk 0:02:29.3]} 11... O-O {[%clk 0:02:13.3]} 12. Nh2 {[%clk
0:02:27.5]} 12... Rad8 {[%clk 0:01:57.7]} 13. Ng4 {[%clk 0:02:22]} 13... Qg6
{[%clk 0:01:57.6]} 14. Bd3 {[%clk 0:02:15]} 14... f5 {[%clk 0:01:55.1]} 15. Ne3
{[%clk 0:02:05.3]} 15... Bf4 {[%clk 0:01:53.7]} 16. g4 {[%clk 0:01:48.9]} 16...
h5 {[%clk 0:01:47.8]} 17. f3 {[%clk 0:01:37.9]} 17... hxg4 {[%clk 0:01:47]} 18.
fxg4 {[%clk 0:01:37.4]} 18... Qh6 {[%clk 0:01:43.8]} 19. Ng2 {[%clk 0:01:21]}
19... Bxc1 {[%clk 0:01:36.8]} 20. Rxc1 {[%clk 0:01:13.3]} 20... Qxh3 {[%clk
0:01:36.8]} 21. Qc2 {[%clk 0:01:10.6]} 21... fxg4 {[%clk 0:01:34.1]} 22. Bh7+
{[%clk 0:01:06.1]} 22... Qxh7 {[%clk 0:01:32.7]} 23. Rxf8+ {[%clk 0:01:04.6]}
23... Rxf8 {[%clk 0:01:31.5]} 24. Qxh7+ {[%clk 0:00:58.7]} 24... Kxh7 {[%clk
0:01:32.4]} 25. Re1 {[%clk 0:00:54]} 25... g3 {[%clk 0:01:24]} 26. Rxe6 {[%clk
0:00:42.2]} 26... Rf2 {[%clk 0:01:22.9]} 27. Nh4 {[%clk 0:00:36.1]} 27... Rxb2
{[%clk 0:01:19.1]} 28. Re1 {[%clk 0:00:29]} 28... Rxa2 {[%clk 0:01:18.3]} 29. c4
{[%clk 0:00:29.4]} 29... Nf6 {[%clk 0:01:11.1]} 30. d5 {[%clk 0:00:29.3]} 30...
Bd7 {[%clk 0:01:10.8]} 31. Nf3 {[%clk 0:00:25.5]} 31... Kh6 {[%clk 0:01:06.7]}
32. Ne5 {[%clk 0:00:21.6]} 32... Bh3 {[%clk 0:01:05.3]} 33. Nf7+ {[%clk
0:00:18.5]} 33... Kg6 {[%clk 0:01:04]} 34. Ne5+ {[%clk 0:00:18.2]} 34... Kh5
{[%clk 0:01:03.7]} 35. Nd3 {[%clk 0:00:15.7]} 35... Rg2+ {[%clk 0:00:56]} 36.
Kh1 {[%clk 0:00:15]} 36... Rd2 {[%clk 0:00:54.5]} 37. Nf4+ {[%clk 0:00:14.3]}
37... Kg4 {[%clk 0:00:54.4]} 38. Ng6 {[%clk 0:00:06.9]} 38... Bg2+ {[%clk
0:00:49]} 39. Kg1 {[%clk 0:00:06.8]} 39... Be4 {[%clk 0:00:49.2]} 40. Ne5+
{[%clk 0:00:05.6]} 40... Kh3 {[%clk 0:00:48.6]} 0-1

[Event "Late-Titled-Tuesday-Blitz-December-26-2023"]
[Site "Chess.com"]
[Date "2023.12.26"]
[Round "8"]
[White "Smile2005"]
[Black "Bala-Afiada"]
[Result "0-1"]
[WhiteElo "2334"]
[BlackElo "2032"]
[TimeControl "180+1"]
[EndTime "15:27:16 PST"]
[Termination "Bala-Afiada won by checkmate"]

1. e4 {[%clk 0:02:54.8]} 1... c5 {[%clk 0:02:59.4]} 2. Nf3 {[%clk 0:02:55.7]}
2... Nc6 {[%clk 0:02:59.5]} 3. d4 {[%clk 0:02:49.8]} 3... cxd4 {[%clk
0:03:00.4]} 4. Nxd4 {[%clk 0:02:49.9]} 4... Nf6 {[%clk 0:03:00]} 5. Nc3 {[%clk
0:02:48.6]} 5... d6 {[%clk 0:03:00.5]} 6. Be2 {[%clk 0:02:47.5]} 6... e6 {[%clk
0:02:59.9]} 7. O-O {[%clk 0:02:46.8]} 7... Be7 {[%clk 0:03:00.3]} 8. f4 {[%clk
0:02:46.5]} 8... O-O {[%clk 0:02:50.2]} 9. Be3 {[%clk 0:02:46.9]} 9... e5 {[%clk
0:02:49.8]} 10. fxe5 {[%clk 0:02:45.7]} 10... dxe5 {[%clk 0:02:49.5]} 11. Nxc6
{[%clk 0:02:45.4]} 11... bxc6 {[%clk 0:02:49.7]} 12. Qe1 {[%clk 0:02:45.2]}
12... Be6 {[%clk 0:02:44]} 13. Qg3 {[%clk 0:02:43.2]} 13... Qa5 {[%clk
0:02:42.9]} 14. Bg5 {[%clk 0:02:33.5]} 14... Kh8 {[%clk 0:02:18]} 15. Rad1
{[%clk 0:02:27.2]} 15... Qb4 {[%clk 0:02:14.8]} 16. Qxe5 {[%clk 0:02:16.2]}
16... Qxb2 {[%clk 0:02:04]} 17. Bxf6 {[%clk 0:02:07.8]} 17... Bxf6 {[%clk
0:02:00.9]} 18. Rxf6 {[%clk 0:02:07.5]} 18... gxf6 {[%clk 0:02:01]} 19. Qxf6+
{[%clk 0:02:07.2]} 19... Kg8 {[%clk 0:02:01.1]} 20. Rd3 {[%clk 0:02:06.2]} 20...
Qc1+ {[%clk 0:01:44]} 21. Nd1 {[%clk 0:01:55.3]} 21... Rfe8 {[%clk 0:01:09.9]}
22. Bh5 {[%clk 0:01:19.2]} 22... Qxc2 {[%clk 0:00:45.5]} 23. Rd7 {[%clk
0:00:38.6]} 23... Qc5+ {[%clk 0:00:39.2]} 24. Nf2 {[%clk 0:00:33.1]} 24... Qxh5
{[%clk 0:00:38.8]} 25. g4 {[%clk 0:00:20.3]} 25... Qg6 {[%clk 0:00:33.6]} 26.
Qd4 {[%clk 0:00:14.6]} 26... Bxd7 {[%clk 0:00:30.9]} 27. Qxd7 {[%clk 0:00:15.5]}
27... Rad8 {[%clk 0:00:30.2]} 28. Qc7 {[%clk 0:00:15.5]} 28... Qd6 {[%clk
0:00:26.7]} 29. Qxa7 {[%clk 0:00:14.4]} 29... Rd7 {[%clk 0:00:21.7]} 30. Qe3
{[%clk 0:00:13.6]} 30... Rde7 {[%clk 0:00:20.8]} 31. Qg5+ {[%clk 0:00:13.4]}
31... Qg6 {[%clk 0:00:20.5]} 32. Qf4 {[%clk 0:00:10.9]} 32... Rxe4 {[%clk
0:00:19.5]} 33. Nxe4 {[%clk 0:00:10.3]} 33... Rxe4 {[%clk 0:00:19.7]} 34. Qb8+
{[%clk 0:00:10.7]} 34... Kg7 {[%clk 0:00:20]} 35. Qb2+ {[%clk 0:00:11.4]} 35...
Qf6 {[%clk 0:00:19.1]} 36. Qg2 {[%clk 0:00:05.2]} 36... Re1+ {[%clk 0:00:15.1]}
37. Qf1 {[%clk 0:00:06.1]} 37... Qxf1# {[%clk 0:00:14.7]} 0-1

[Event "Late-Titled-Tuesday-Blitz-December-26-2023"]
[Site "Chess.com"]
[Date "2023.12.26"]
[Round "8"]
[White "liczner"]
[Black "NoHeThTo"]
[Result "1/2-1/2"]
[WhiteElo "2931"]
[BlackElo "2705"]
[TimeControl "180+1"]
[EndTime "15:27:18 PST"]
[Termination "Game drawn by agreement"]

1. e4 {[%clk 0:02:55.5]} 1... c5 {[%clk 0:02:59.9]} 2. Nf3 {[%clk 0:02:55.5]}
2... g6 {[%clk 0:03:00]} 3. d4 {[%clk 0:02:54.8]} 3... cxd4 {[%clk 0:03:00.3]}
4. Nxd4 {[%clk 0:02:55.7]} 4... Bg7 {[%clk 0:03:00.4]} 5. Be2 {[%clk 0:02:56]}
5... Nc6 {[%clk 0:02:59.6]} 6. Nb3 {[%clk 0:02:56.3]} 6... Nf6 {[%clk
0:02:59.6]} 7. Nc3 {[%clk 0:02:56.9]} 7... O-O {[%clk 0:02:59.7]} 8. O-O {[%clk
0:02:57.5]} 8... d6 {[%clk 0:02:59.7]} 9. Re1 {[%clk 0:02:58.1]} 9... Be6 {[%clk
0:02:59.7]} 10. Bf1 {[%clk 0:02:58]} 10... a6 {[%clk 0:02:58.2]} 11. Nd5 {[%clk
0:02:58]} 11... Rc8 {[%clk 0:02:56.8]} 12. c3 {[%clk 0:02:48.5]} 12... Re8
{[%clk 0:02:54.7]} 13. Bg5 {[%clk 0:02:45]} 13... Na5 {[%clk 0:02:39.8]} 14.
Nxf6+ {[%clk 0:02:16]} 14... exf6 {[%clk 0:02:36.2]} 15. Bf4 {[%clk 0:02:16.6]}
15... Nxb3 {[%clk 0:02:30.7]} 16. axb3 {[%clk 0:02:17.5]} 16... d5 {[%clk
0:02:31.1]} 17. exd5 {[%clk 0:01:47.2]} 17... Qxd5 {[%clk 0:02:29.3]} 18. Qxd5
{[%clk 0:01:47.4]} 18... Bxd5 {[%clk 0:02:29.5]} 19. b4 {[%clk 0:01:44.5]} 19...
Bc6 {[%clk 0:02:20.2]} 20. f3 {[%clk 0:01:32.8]} 20... f5 {[%clk 0:02:18.4]} 21.
Kf2 {[%clk 0:01:30.8]} 21... Bf6 {[%clk 0:02:17]} 22. Rxe8+ {[%clk 0:01:26.5]}
22... Rxe8 {[%clk 0:02:16.5]} 23. Re1 {[%clk 0:01:26.9]} 23... Rxe1 {[%clk
0:02:16.3]} 24. Kxe1 {[%clk 0:01:26.6]} 24... Kf8 {[%clk 0:02:16.9]} 25. Bd6+
{[%clk 0:01:20.2]} 25... Ke8 {[%clk 0:02:15.6]} 26. Bc4 {[%clk 0:01:18.7]} 26...
Bg5 {[%clk 0:01:56]} 27. Be5 {[%clk 0:00:42.2]} 27... Be3 {[%clk 0:01:38.4]} 28.
Ke2 {[%clk 0:00:38.8]} 28... Bb6 {[%clk 0:01:34]} 29. Kd3 {[%clk 0:00:37.2]}
29... Ke7 {[%clk 0:01:32.7]} 30. Ba2 {[%clk 0:00:32.8]} 30... f6 {[%clk
0:01:29.4]} 31. Bd4 {[%clk 0:00:32.9]} 31... Bc7 {[%clk 0:01:24.4]} 32. Bc5+
{[%clk 0:00:33.1]} 32... Ke8 {[%clk 0:01:24.5]} 33. h3 {[%clk 0:00:28.6]} 33...
b5 {[%clk 0:01:17.5]} 34. Bd4 {[%clk 0:00:24.5]} 34... Ke7 {[%clk 0:01:16.8]}
35. Ke2 {[%clk 0:00:21]} 35... h5 {[%clk 0:01:15.4]} 36. Bb1 {[%clk 0:00:19.5]}
36... Ke6 {[%clk 0:01:13.7]} 37. Bd3 {[%clk 0:00:19.6]} 37... Bd5 {[%clk
0:01:11.8]} 38. Bc2 {[%clk 0:00:18.4]} 38... g5 {[%clk 0:01:01.2]} 39. b3 {[%clk
0:00:17.9]} 39... g4 {[%clk 0:01:00.4]} 40. Ke3 {[%clk 0:00:07.1]} 40... Bg3
{[%clk 0:00:45.4]} 41. Ke2 {[%clk 0:00:07.1]} 41... Bf4 {[%clk 0:00:44.5]} 42.
Be3 {[%clk 0:00:06.4]} 42... Ke5 {[%clk 0:00:33.1]} 43. Bd4+ {[%clk 0:00:06]}
43... Ke6 {[%clk 0:00:33.3]} 44. Be3 {[%clk 0:00:06.4]} 1/2-1/2

[Event "Late-Titled-Tuesday-Blitz-December-26-2023"]
[Site "Chess.com"]
[Date "2023.12.26"]
[Round "8"]
[White "karinachess1"]
[Black "Kapitan_Bayan"]
[Result "1-0"]
[WhiteElo "2565"]
[BlackElo "2344"]
[TimeControl "180+1"]
[EndTime "15:27:22 PST"]
[Termination "karinachess1 won on time"]

1. d4 {[%clk 0:03:00.9]} 1... d5 {[%clk 0:02:56.2]} 2. c4 {[%clk 0:03:01.1]}
2... dxc4 {[%clk 0:02:56]} 3. e3 {[%clk 0:02:57.4]} 3... Nf6 {[%clk 0:02:55.7]}
4. Bxc4 {[%clk 0:02:57.3]} 4... e6 {[%clk 0:02:56.4]} 5. Nf3 {[%clk 0:02:55.6]}
5... c5 {[%clk 0:02:55.9]} 6. O-O {[%clk 0:02:55.5]} 6... a6 {[%clk 0:02:56.3]}
7. Qe2 {[%clk 0:02:52.8]} 7... b5 {[%clk 0:02:55.3]} 8. Bb3 {[%clk 0:02:53.2]}
8... Nbd7 {[%clk 0:02:55.9]} 9. Rd1 {[%clk 0:02:52.7]} 9... Bb7 {[%clk
0:02:56.3]} 10. a4 {[%clk 0:02:51.3]} 10... c4 {[%clk 0:02:52.8]} 11. Bc2 {[%clk
0:02:51.7]} 11... Be7 {[%clk 0:02:51.4]} 12. e4 {[%clk 0:02:48]} 12... Nb6
{[%clk 0:02:38.3]} 13. Nbd2 {[%clk 0:02:38.8]} 13... O-O {[%clk 0:02:33.9]} 14.
Nf1 {[%clk 0:02:33.4]} 14... Rc8 {[%clk 0:02:04.9]} 15. a5 {[%clk 0:02:33.4]}
15... Na4 {[%clk 0:01:58.5]} 16. Ng3 {[%clk 0:02:28.4]} 16... Qxa5 {[%clk
0:01:55.4]} 17. Bg5 {[%clk 0:02:02.4]} 17... Qd8 {[%clk 0:01:53.7]} 18. e5
{[%clk 0:01:56.1]} 18... Nd5 {[%clk 0:01:52.4]} 19. Qe4 {[%clk 0:01:56.4]} 19...
g6 {[%clk 0:01:43.9]} 20. Qh4 {[%clk 0:01:56.5]} 20... Nxb2 {[%clk 0:01:23.5]}
21. Re1 {[%clk 0:01:40.2]} 21... Nd3 {[%clk 0:01:14.7]} 22. Red1 {[%clk
0:01:31.1]} 22... N3f4 {[%clk 0:01:08.7]} 23. Ne4 {[%clk 0:01:25.5]} 23... Nh5
{[%clk 0:00:45]} 24. g4 {[%clk 0:01:16]} 24... Bxg5 {[%clk 0:00:28.7]} 25. Nfxg5
{[%clk 0:01:16.1]} 25... h6 {[%clk 0:00:25.9]} 26. gxh5 {[%clk 0:01:15.5]} 26...
hxg5 {[%clk 0:00:26.2]} 27. Nxg5 {[%clk 0:01:15.7]} 27... Kg7 {[%clk 0:00:19.7]}
28. h6+ {[%clk 0:01:08.6]} 28... Kh8 {[%clk 0:00:20]} 29. Be4 {[%clk 0:01:00.2]}
29... c3 {[%clk 0:00:19.3]} 30. Rdc1 {[%clk 0:00:55]} 30... b4 {[%clk
0:00:18.7]} 31. Bc2 {[%clk 0:00:43.5]} 31... Ne7 {[%clk 0:00:06.3]} 32. Bb3
{[%clk 0:00:43.9]} 32... Nf5 {[%clk 0:00:05.8]} 33. Qf4 {[%clk 0:00:44.2]} 33...
Bd5 {[%clk 0:00:04.9]} 34. Bxd5 {[%clk 0:00:37.3]} 34... Qxd5 {[%clk 0:00:05.8]}
35. Rxa6 {[%clk 0:00:36.5]} 35... b3 {[%clk 0:00:04.9]} 36. Rd6 {[%clk
0:00:34.8]} 36... Qb5 {[%clk 0:00:01.3]} 37. Ne4 {[%clk 0:00:19.9]} 37... b2
{[%clk 0:00:02.2]} 38. Rf1 {[%clk 0:00:18.8]} 38... c2 {[%clk 0:00:02.4]} 39.
Qg5 {[%clk 0:00:17.5]} 1-0

[Event "Late-Titled-Tuesday-Blitz-December-26-2023"]
[Site "Chess.com"]
[Date "2023.12.26"]
[Round "8"]
[White "AlexanderL"]
[Black "jefferyx"]
[Result "0-1"]
[WhiteElo "2888"]
[BlackElo "3024"]
[TimeControl "180+1"]
[EndTime "15:27:24 PST"]
[Termination "jefferyx won by resignation"]

1. e4 {[%clk 0:03:00.9]} 1... c5 {[%clk 0:02:59.9]} 2. d4 {[%clk 0:03:00.7]}
2... cxd4 {[%clk 0:02:59.8]} 3. c3 {[%clk 0:03:00.9]} 3... e6 {[%clk 0:02:59.8]}
4. cxd4 {[%clk 0:03:00.6]} 4... d5 {[%clk 0:02:59.9]} 5. e5 {[%clk 0:03:00]}
5... Nc6 {[%clk 0:02:59.9]} 6. Nf3 {[%clk 0:02:59.4]} 6... Nge7 {[%clk
0:02:59.9]} 7. Bd3 {[%clk 0:02:59.1]} 7... Nf5 {[%clk 0:02:59.6]} 8. Bxf5 {[%clk
0:02:46.5]} 8... exf5 {[%clk 0:03:00.5]} 9. O-O {[%clk 0:02:41.2]} 9... Be7
{[%clk 0:03:00.3]} 10. Nc3 {[%clk 0:02:41.3]} 10... Be6 {[%clk 0:03:00.3]} 11.
Ne2 {[%clk 0:02:39.5]} 11... g5 {[%clk 0:02:59.9]} 12. Ne1 {[%clk 0:02:37.5]}
12... f4 {[%clk 0:02:58.9]} 13. Bd2 {[%clk 0:02:35.9]} 13... Bf5 {[%clk
0:02:49.7]} 14. Rc1 {[%clk 0:02:31.6]} 14... Qd7 {[%clk 0:02:49.3]} 15. Bc3
{[%clk 0:02:23.6]} 15... Nd8 {[%clk 0:02:28.9]} 16. Nd3 {[%clk 0:02:22.3]} 16...
Ne6 {[%clk 0:02:28.9]} 17. Qd2 {[%clk 0:02:17.7]} 17... Rc8 {[%clk 0:02:26.8]}
18. Rfd1 {[%clk 0:02:04.8]} 18... O-O {[%clk 0:02:02.4]} 19. f3 {[%clk
0:02:01.9]} 19... Qb5 {[%clk 0:01:59.1]} 20. Nf2 {[%clk 0:01:46.3]} 20... f6
{[%clk 0:01:54.4]} 21. exf6 {[%clk 0:01:45.7]} 21... Bxf6 {[%clk 0:01:54.3]} 22.
Ng4 {[%clk 0:01:44.6]} 22... Bg7 {[%clk 0:01:48.6]} 23. Ne5 {[%clk 0:01:44.8]}
23... Rfe8 {[%clk 0:01:47.6]} 24. Re1 {[%clk 0:01:41.4]} 24... Red8 {[%clk
0:01:29.3]} 25. g4 {[%clk 0:01:41.3]} 25... Bg6 {[%clk 0:01:24.2]} 26. Nxg6
{[%clk 0:01:40.1]} 26... hxg6 {[%clk 0:01:25.1]} 27. Kg2 {[%clk 0:01:39.3]}
27... Kf7 {[%clk 0:01:25.1]} 28. Ng1 {[%clk 0:01:39.6]} 28... Bf6 {[%clk
0:01:19.9]} 29. Rcd1 {[%clk 0:01:22.7]} 29... Rh8 {[%clk 0:01:16.8]} 30. Re2
{[%clk 0:01:22.9]} 30... Rce8 {[%clk 0:01:14.5]} 31. Rde1 {[%clk 0:01:21.5]}
31... Nd8 {[%clk 0:01:10.5]} 32. Rxe8 {[%clk 0:01:19.3]} 32... Rxe8 {[%clk
0:01:11.4]} 33. Rxe8 {[%clk 0:01:19]} 33... Qxe8 {[%clk 0:01:11.3]} 34. h4
{[%clk 0:01:19.4]} 34... gxh4 {[%clk 0:01:04.2]} 35. Qxf4 {[%clk 0:01:19]} 35...
Ne6 {[%clk 0:01:04.4]} 36. Qd6 {[%clk 0:01:12.3]} 36... Qc6 {[%clk 0:01:02.6]}
37. Qxc6 {[%clk 0:01:10.4]} 37... Nf4+ {[%clk 0:01:02.3]} 38. Kh2 {[%clk
0:01:08.5]} 38... bxc6 {[%clk 0:01:03.2]} 39. b4 {[%clk 0:00:49.9]} 39... g5
{[%clk 0:01:02.5]} 40. a4 {[%clk 0:00:49.2]} 40... Kg6 {[%clk 0:01:02.3]} 41.
Kh1 {[%clk 0:00:45.4]} 41... Be7 {[%clk 0:01:01.7]} 42. Kh2 {[%clk 0:00:44.2]}
42... a6 {[%clk 0:01:00.1]} 43. Kh1 {[%clk 0:00:44.1]} 43... Nd3 {[%clk
0:00:59.8]} 44. Ne2 {[%clk 0:00:39.1]} 44... Bxb4 {[%clk 0:00:59.7]} 45. Bxb4
{[%clk 0:00:39]} 45... Nxb4 {[%clk 0:01:00.3]} 46. Kg2 {[%clk 0:00:33.2]} 46...
Nd3 {[%clk 0:01:00.1]} 47. Kh3 {[%clk 0:00:26.5]} 47... Kf6 {[%clk 0:00:54.5]}
48. a5 {[%clk 0:00:23.9]} 48... Ke6 {[%clk 0:00:46.2]} 49. Nc3 {[%clk
0:00:15.8]} 49... Ne1 {[%clk 0:00:40.9]} 50. f4 {[%clk 0:00:09.7]} 50... gxf4
{[%clk 0:00:41.8]} 51. Na4 {[%clk 0:00:09.9]} 51... f3 {[%clk 0:00:36.7]} 52.
Nc5+ {[%clk 0:00:10]} 52... Kd6 {[%clk 0:00:36.8]} 0-1

[Event "Late-Titled-Tuesday-Blitz-December-26-2023"]
[Site "Chess.com"]
[Date "2023.12.26"]
[Round "8"]
[White "ccccvhhhj"]
[Black "Zampronha1971"]
[Result "1-0"]
[WhiteElo "2502"]
[BlackElo "2338"]
[TimeControl "180+1"]
[EndTime "15:27:28 PST"]
[Termination "ccccvhhhj won on time"]

1. e4 {[%clk 0:03:00.9]} 1... c5 {[%clk 0:02:59]} 2. Nf3 {[%clk 0:03:01.4]} 2...
e6 {[%clk 0:02:59.3]} 3. b4 {[%clk 0:03:01.1]} 3... d5 {[%clk 0:02:58.2]} 4. e5
{[%clk 0:03:00.9]} 4... d4 {[%clk 0:02:58.1]} 5. bxc5 {[%clk 0:03:00.9]} 5...
Bxc5 {[%clk 0:02:58.6]} 6. Bd3 {[%clk 0:03:01.8]} 6... Nc6 {[%clk 0:02:57.1]} 7.
c3 {[%clk 0:03:02.4]} 7... Nge7 {[%clk 0:02:55.9]} 8. O-O {[%clk 0:03:02.3]}
8... dxc3 {[%clk 0:02:54.9]} 9. dxc3 {[%clk 0:03:02.5]} 9... Ng6 {[%clk
0:02:50.8]} 10. Qe2 {[%clk 0:03:02.3]} 10... Qc7 {[%clk 0:02:49.4]} 11. Re1
{[%clk 0:02:57.5]} 11... O-O {[%clk 0:02:45.3]} 12. Na3 {[%clk 0:02:57.9]} 12...
a6 {[%clk 0:02:43.8]} 13. h4 {[%clk 0:02:51.8]} 13... Rd8 {[%clk 0:02:40.4]} 14.
h5 {[%clk 0:02:47.3]} 14... Ngxe5 {[%clk 0:02:22.5]} 15. Bc2 {[%clk 0:02:30.5]}
15... Nxf3+ {[%clk 0:02:17.5]} 16. Qxf3 {[%clk 0:02:31.4]} 16... b5 {[%clk
0:00:45.2]} 17. h6 {[%clk 0:02:17.2]} 17... Bf8 {[%clk 0:00:34.1]} 18. hxg7
{[%clk 0:02:09.6]} 18... Bxg7 {[%clk 0:00:35]} 19. Be4 {[%clk 0:01:44.7]} 19...
Bb7 {[%clk 0:00:32.5]} 20. Nc2 {[%clk 0:01:44.9]} 20... f5 {[%clk 0:00:28]} 21.
Bxc6 {[%clk 0:01:13.4]} 21... Bxc6 {[%clk 0:00:25.8]} 22. Qh3 {[%clk 0:01:08.4]}
22... Bd5 {[%clk 0:00:22.5]} 23. Bg5 {[%clk 0:01:04.4]} 23... Re8 {[%clk
0:00:20.5]} 24. Ne3 {[%clk 0:01:04.8]} 24... Qxc3 {[%clk 0:00:19]} 25. Rac1
{[%clk 0:01:01.6]} 25... Qb2 {[%clk 0:00:16.3]} 26. Rc7 {[%clk 0:00:54.5]} 26...
Rac8 {[%clk 0:00:14.7]} 27. Rec1 {[%clk 0:00:47.6]} 27... Qxc1+ {[%clk
0:00:13.9]} 28. Rxc1 {[%clk 0:00:46.9]} 28... Rxc1+ {[%clk 0:00:14.6]} 29. Kh2
{[%clk 0:00:47.1]} 29... Be5+ {[%clk 0:00:15.3]} 30. f4 {[%clk 0:00:46.6]} 30...
Bg7 {[%clk 0:00:14.9]} 31. Nxd5 {[%clk 0:00:40.6]} 31... exd5 {[%clk 0:00:14.7]}
32. Qxf5 {[%clk 0:00:41.3]} 32... Rce1 {[%clk 0:00:12.5]} 33. Qxd5+ {[%clk
0:00:41.4]} 33... Kh8 {[%clk 0:00:12.8]} 34. Qc6 {[%clk 0:00:37.4]} 34... Rf8
{[%clk 0:00:12.5]} 35. Qxa6 {[%clk 0:00:35.4]} 35... h6 {[%clk 0:00:08.9]} 36.
Bxh6 {[%clk 0:00:35.6]} 36... Rg8 {[%clk 0:00:06]} 37. Bg5 {[%clk 0:00:27.4]}
37... Ree8 {[%clk 0:00:03.6]} 38. Qg6 {[%clk 0:00:27.6]} 38... Rgf8 {[%clk
0:00:01.8]} 39. f5 {[%clk 0:00:19.6]} 39... Re5 {[%clk 0:00:01.7]} 40. f6 {[%clk
0:00:17.7]} 40... Rxg5 {[%clk 0:00:01.8]} 41. Qxg5 {[%clk 0:00:17.5]} 1-0